fUSD/lending_fUSD_20260106
["ID","MTS","AMOUNT","RATE_DAILY","PERIOD"]
[400501909,1767675047757,-159.2619942,0.000209,4]
[400501910,1767675047767,-159.2619942,0.000209,4]
[400501911,1767675047776,-159.2619942,0.000209,4]
[400501912,1767675047786,-159.2619942,0.000209,4]
[400501913,1767675047795,-159.2619942,0.000209,4]
[400501914,1767675047804,-159.2619942,0.000209,4]
[400501915,1767675047814,-159.2619942,0.000209,4]
[400501916,1767675047823,-159.2619942,0.000209,4]
[400501917,1767675047834,-159.2619942,0.000209,4]
[400501918,1767675047843,-159.2619942,0.000209,4]
[400501919,1767675047903,-159.2619942,0.000209,4]
[400501920,1767675047913,-159.2619942,0.000209,4]
[400501921,1767675047922,-159.2619942,0.000209,4]
[400501922,1767675047931,-159.2619942,0.000209,4]
[400501923,1767675047940,-159.2619942,0.000209,4]
[400501924,1767675047949,-159.2619942,0.000209,4]
[400501925,1767675047958,-159.2619942,0.000209,4]
[400501926,1767675047967,-159.2619942,0.000209,4]
[400501927,1767675047976,-159.2619942,0.000209,4]
[400501928,1767675047985,-159.2619942,0.000209,4]
[400501929,1767675047995,-159.2619942,0.000209,4]
[400501930,1767675048004,-159.2619942,0.000209,4]
[400501931,1767675048013,-159.2619942,0.000209,4]
[400501932,1767675048021,-159.2619942,0.000209,4]
[400501933,1767675048030,-159.2619942,0.000209,4]
[400501934,1767675048039,-159.2619942,0.000209,4]
[400501935,1767675048048,-159.2619942,0.000209,4]
[400501936,1767675048057,-159.2619942,0.000209,4]
[400501937,1767675048066,-159.2619942,0.000209,4]
[400501938,1767675048075,-159.2619942,0.000209,4]
[400501939,1767675048084,-159.2619942,0.000209,4]
[400501940,1767675048093,-159.2619942,0.000209,4]
[400501941,1767675048101,-159.2619942,0.000209,4]
[400501942,1767675048110,-159.2619942,0.000209,4]
[400501943,1767675048119,-159.2619942,0.000209,4]
[400501944,1767675048127,-159.2619942,0.000209,4]
[400501945,1767675048136,-159.2619942,0.000209,4]
[400501946,1767675048145,-159.2619942,0.000209,4]
[400501947,1767675048154,-159.2619942,0.000209,4]
[400501948,1767675048163,-159.2619942,0.000209,4]
[400501949,1767675048171,-159.2619942,0.000209,4]
[400501950,1767675048180,-263.621229,0.000209,2]
[400501951,1767675048189,-159.2619942,0.000209,4]
[400501952,1767675048198,-159.2619942,0.000209,4]
[400501953,1767675048207,-159.2619942,0.000209,4]
[400501954,1767675048216,-159.2619942,0.000209,4]
[400501955,1767675048225,-159.2619942,0.000209,4]
[400501956,1767675048234,-159.2619942,0.000209,4]
[400501957,1767675048243,-159.2619942,0.000209,4]
[400501958,1767675048252,-159.2619942,0.000209,4]
[400501959,1767675048262,-159.2619942,0.000209,4]
[400501960,1767675048271,-159.2619942,0.000209,4]
[400501961,1767675048279,-159.2619942,0.000209,4]
[400501962,1767675048288,-159.2619942,0.000209,4]
[400501963,1767675048299,-159.2619942,0.000209,4]
[400501964,1767675048309,-159.2619942,0.000209,4]
[400501965,1767675048318,-159.2619942,0.000209,4]
[400501966,1767675048327,-159.2619942,0.000209,4]
[400501967,1767675048338,-159.2619942,0.000209,4]
[400501968,1767675048348,-159.2619942,0.000209,4]
[400501969,1767675048358,-159.2619942,0.000209,4]
[400501970,1767675048372,-159.2619942,0.000209,4]
[400501971,1767675048381,-159.2619942,0.000209,4]
[400501972,1767675048392,-159.2619942,0.000209,4]
[400501973,1767675048403,-159.2619942,0.000209,4]
[400501974,1767675048415,-159.2619942,0.000209,4]
[400501975,1767675048424,-159.2619942,0.000209,4]
[400501976,1767675048433,-159.2619942,0.000209,4]
[400501977,1767675048442,-159.2619942,0.000209,4]
[400501978,1767675048451,-159.2619942,0.000209,4]
[400501979,1767675048460,-159.2619942,0.000209,4]
[400501980,1767675048469,-472.525042,0.000209,2]
[400501981,1767675048478,-159.2619942,0.000209,4]
[400501982,1767675048487,-159.2619942,0.000209,4]
[400501983,1767675048496,-159.2619942,0.000209,4]
[400501984,1767675048505,-159.2619942,0.000209,4]
[400501985,1767675048514,-159.2619942,0.000209,4]
[400501986,1767675048523,-159.2619942,0.000209,4]
[400501987,1767675048532,-159.2619942,0.000209,4]
[400501988,1767675048541,-159.2619942,0.000209,4]
[400501989,1767675048550,-159.2619942,0.000209,4]
[400501990,1767675048559,-159.2619942,0.000209,4]
[400501991,1767675048568,-159.2619942,0.000209,4]
[400501992,1767675048577,-159.2619942,0.000209,4]
[400501993,1767675048586,-159.2619942,0.000209,4]
[400501994,1767675048595,-159.2619942,0.000209,4]
[400501995,1767675048603,-159.2619942,0.000209,4]
[400501996,1767675048613,-159.2619942,0.000209,4]
[400501997,1767675048622,-159.2619942,0.000209,4]
[400501998,1767675048630,-159.2619942,0.000209,4]
[400501999,1767675048640,-159.2619942,0.000209,4]
[400502000,1767675048649,-159.2619942,0.000209,4]
[400502001,1767675048658,-472.525042,0.000209,2]
[400502002,1767675048667,-472.525042,0.000209,2]
[400502003,1767675048677,-472.525042,0.000209,2]
[400502004,1767675048686,-551.396314,0.000209,2]
[400502005,1767675048695,-551.396314,0.000209,2]
[400502006,1767675048704,-551.396314,0.000209,2]
[400502007,1767675048713,-551.396314,0.000209,2]
[400502008,1767675048722,-151.0,0.000209,2]
[400502009,1767675048731,-151.0,0.000209,2]
[400502010,1767675048740,-151.0,0.000209,2]
[400502011,1767675048749,-151.0,0.000209,2]
[400502012,1767675048758,-151.0,0.000209,2]
[400502013,1767675048767,-182.735076,0.000209,2]
[400502014,1767675048776,-151.0,0.000209,2]
[400502015,1767675048784,-2921.179768,0.000209,2]
[400502016,1767675048793,-2921.179768,0.000209,2]
[400502017,1767675048803,-2921.179768,0.000209,2]
[400502018,1767675048812,-2921.179768,0.000209,2]
[400502019,1767675048821,-255.21654,0.000209,2]
[400502020,1767675048830,-255.21654,0.000209,2]
[400502021,1767675048839,-255.21654,0.000209,2]
[400502022,1767675048848,-255.21654,0.000209,2]
[400502023,1767675048859,-951.93936563,0.000209,2]
[400502024,1767675048868,-951.93936563,0.000209,2]
[400502025,1767675048877,-481.7358,0.000209,2]
[400502026,1767675048887,-481.7358,0.000209,2]
[400502027,1767675048896,-481.7358,0.000209,2]
[400502028,1767675048905,-481.7358,0.000209,2]
[400502029,1767675048914,-159.353982,0.000209,2]
[400502030,1767675048924,-1000.0,0.00020912,2]
[400502031,1767675048934,-158.04,0.00020915,2]
[400502032,1767675048943,-446.0455349,0.00020939,2]
[400502033,1767675048952,-150.99,0.00020951,2]
[400502034,1767675048961,-9999.99,0.00020951,2]
[400502035,1767675048970,-999.99,0.00020951,2]
[400502036,1767675048980,-150.0,0.00020973,2]
[400502037,1767675048989,-2351.0,0.00020979,2]
[400502038,1767675048999,-500.0,0.0002098,3]
[400502039,1767675049008,-300.0,0.00020989,2]
[400502040,1767675049017,-323.23631266,0.00020989,2]
[400502041,1767675049026,-105206.35060363,0.0002099,2]
[400502042,1767675049035,-100000.1,0.0002099,2]
[400502043,1767675049044,-21614.28635691,0.0002099,2]
[400502044,1767675049053,-20000.0,0.00021,2]
[400502045,1767675049063,-250.0,0.00021,5]
[400502046,1767675049072,-1191.10206998,0.00021,2]
[400502047,1767675049082,-196.60130033,0.00021,2]
[400502048,1767675049091,-5002.22641179,0.00021,2]
[400502049,1767675049100,-598.81,0.00021,15]
[400502050,1767675049110,-12490.12,0.00021068,2]
[400502051,1767675049119,-4663.23147502,0.00021088,2]
[400502052,1767675049128,-1329.0,0.000211,2]
[400502053,1767675049138,-1295.021,0.000211,2]
[400502054,1767675049146,-6549.0,0.000211,2]
[400502055,1767675049156,-2435.0,0.000211,2]
[400502056,1767675049166,-3334.39214735,0.00021103,2]
[400502057,1767675049175,-1000.0,0.00021157,2]
[400502058,1767675049185,-152.0,0.00021173,7]
[400502059,1767675049195,-500.0,0.00021308,2]
[400502060,1767675049204,-500.0,0.00021309,2]
[400502061,1767675049213,-500.0,0.0002131,2]
[400502062,1767675049222,-499.9999,0.00021311,2]
[400502063,1767675049232,-177.69,0.00021321,2]
[400502064,1767675049241,-6366.1,0.0002137,2]
[400502065,1767675049250,-8870.6677993,0.00021401,2]
[400502066,1767675049259,-700.0,0.00021448,7]
[400502067,1767675049268,-500.0,0.00021448,7]
[400502068,1767675049277,-500.0,0.00021448,7]
[400502069,1767675049286,-300.0,0.00021499,2]
[400502070,1767675049295,-57434.24387779,0.000215,2]
[400502071,1767675049304,-221.75499741,0.000215,2]
[400502072,1767675049314,-481.7358,0.000215,2]
[400502073,1767675049324,-481.7358,0.000215,2]
[400502074,1767675049333,-481.7358,0.000215,2]
[400502075,1767675049342,-481.7358,0.000215,2]
[400502076,1767675049351,-250.0,0.00021521,2]
[400502077,1767675049361,-170.84,0.00021699,2]
[400502078,1767675049375,-152.0,0.00021726,8]
[400502079,1767675049384,-2000.0,0.000218,2]
[400502080,1767675049393,-4663.23147502,0.00021891,2]
[400502081,1767675049402,-324.91,0.00021903,2]
[400502082,1767675049414,-3334.39214735,0.00021904,2]
[400502083,1767675049424,-5000.0,0.00021918,2]
[400502084,1767675049434,-151.0,0.00021918,2]
[400502085,1767675049445,-222.382707,0.00021918,2]
[400502086,1767675049455,-800.0,0.00021918,2]
[400502087,1767675049464,-800.0,0.00021918,2]
[400502088,1767675049473,-800.0,0.00021918,2]
[400502089,1767675049483,-800.0,0.00021918,2]
[400502090,1767675049491,-800.0,0.00021918,2]
[400502091,1767675049501,-800.0,0.00021918,2]
[400502092,1767675049510,-800.0,0.00021918,2]
[400502093,1767675049519,-800.0,0.00021918,2]
[400502094,1767675049528,-1000.0,0.00021918,2]
[400502095,1767675049538,-1979.3135266,0.0002194,2]
[400502096,1767675049547,-400.0,0.00022,30]
[400502097,1767675049557,-4169.35264222,0.00022,2]
[400502098,1767675049566,-163.4,0.00022,2]
[400502099,1767675049575,-163.53,0.00022,2]
[400502100,1767675049583,-7639.71,0.00022,7]
[400502101,1767675049593,-42717.33357779,0.00022,7]
[400502102,1767675049783,-3296.01226809,0.00022,7]
[400502103,1767675050627,-500.0,0.00017969,2]
[400502104,1767675050637,-186.21959427,0.00017969,2]
[400502105,1767675050738,-316.91563106,0.00017969,2]
[400502106,1767675050748,-500.0,0.00017969,2]
[400502107,1767675050759,-500.0,0.00017969,2]
[400502108,1767675050768,-500.0,0.00017969,2]
[400502109,1767675050777,-63.08436894,0.00017969,2]
[400502110,1767675050800,-436.91563106,0.00017969,2]
[400502111,1767675050809,-500.0,0.00017969,2]
[400502112,1767675050819,-237.99784959,0.00017969,2]
[400502113,1767675050828,-628.4422452,0.00017969,2]
[400502114,1767675050838,-500.0,0.00017969,2]
[400502115,1767675050847,-500.0,0.00017969,2]
[400502116,1767675050856,-500.0,0.00017969,2]
[400502117,1767675050865,-500.0,0.00017969,2]
[400502118,1767675050875,-500.0,0.00017969,2]
[400502119,1767675050884,-500.0,0.00017969,2]
[400502120,1767675050893,-500.0,0.00017969,2]
[400502121,1767675050902,-500.0,0.00017969,2]
[400502122,1767675050912,-500.0,0.00017969,2]
[400502123,1767675050923,-500.0,0.00017969,2]
[400502124,1767675050933,-500.0,0.00017969,2]
[400502125,1767675050942,-500.0,0.00017969,2]
[400502126,1767675050951,-500.0,0.00017969,2]
[400502127,1767675050960,-500.0,0.00017969,2]
[400502128,1767675050969,-500.0,0.00017969,2]
[400502129,1767675050979,-500.0,0.00017969,2]
[400502130,1767675050988,-500.0,0.00017969,2]
[400502131,1767675050997,-500.0,0.00017969,2]
[400502132,1767675051006,-500.0,0.00017969,2]
[400502133,1767675051015,-500.0,0.00017969,2]
[400502134,1767675051024,-500.0,0.00017969,2]
[400502135,1767675051034,-500.0,0.00017969,2]
[400502136,1767675051043,-500.0,0.00017969,2]
[400502137,1767675051052,-500.0,0.00017969,2]
[400502138,1767675051061,-500.0,0.00017969,2]
[400502139,1767675051071,-500.0,0.00017969,2]
[400502140,1767675051080,-500.0,0.00017969,2]
[400502141,1767675051088,-500.0,0.00017969,2]
[400502142,1767675051097,-545.18603254,0.00017969,2]
[400502143,1767675051106,-914.0,0.000181,2]
[400502144,1767675051116,-151.0,0.000209,2]
[400502145,1767675051125,-151.0,0.000209,2]
[400502146,1767675051134,-914.0,0.000211,2]
[400502147,1767675051144,-151.0,0.000215,2]
[400502148,1767675051153,-49013.39415412,0.00022,7]
[400502149,1767675051163,-160.558101,0.00022,2]
[400502150,1767675051172,-151.0,0.00022,2]
[400502151,1767675051182,-151.0,0.00022,2]
[400502152,1767675051191,-472.525042,0.00022,2]
[400502153,1767675051200,-472.525042,0.00022,2]
[400502154,1767675051209,-472.525042,0.00022,2]
[400502155,1767675051220,-472.525042,0.00022,2]
[400502156,1767675051229,-551.396314,0.00022,2]
[400502157,1767675051238,-551.396314,0.00022,2]
[400502158,1767675051247,-551.396314,0.00022,2]
[400502159,1767675051256,-551.396314,0.00022,2]
[400502160,1767675051265,-151.0,0.00022,2]
[400502161,1767675051275,-151.0,0.00022,2]
[400502162,1767675051284,-151.0,0.00022,2]
[400502163,1767675051293,-151.0,0.00022,2]
[400502164,1767675051302,-151.0,0.00022,2]
[400502165,1767675051311,-151.0,0.00022,2]
[400502166,1767675051320,-2921.179768,0.00022,2]
[400502167,1767675051329,-2921.179768,0.00022,2]
[400502168,1767675051339,-2921.179768,0.00022,2]
[400502169,1767675051348,-255.21654,0.00022,2]
[400502170,1767675051357,-2921.179768,0.00022,2]
[400502171,1767675051368,-255.21654,0.00022,2]
[400502172,1767675051380,-255.21654,0.00022,2]
[400502173,1767675051389,-255.21654,0.00022,2]
[400502174,1767675051399,-157.92,0.00022048,2]
[400502175,1767675051410,-350.0,0.00022068,2]
[400502176,1767675051419,-304.11523412,0.000221,2]
[400502177,1767675213722,154.27379001,0.00032876,120]
[400502178,1767675405322,500.0,0.00032876,120]
[400502179,1767675405573,500.0,0.00032876,120]
[400502180,1767675405806,500.0,0.00032876,120]
[400502181,1767675406048,500.0,0.00032876,120]
[400502182,1767675406287,500.0,0.00032876,120]
[400502183,1767675406521,500.0,0.00032876,120]
[400502184,1767675406812,500.0,0.00032876,120]
[400502185,1767675407094,221.10503896,0.00032876,120]
[400502186,1767675436865,172.07957237,0.00032876,120]
[400502187,1767675517908,470.65,0.00013699,2]
[400502189,1767676061555,156.22161766,0.00013881,7]
[400502190,1767676187638,154.63082122,0.00013881,7]
[400502191,1767676231800,-250.0,0.00017,2]
[400502192,1767676231810,-228.49147285,0.00017229,2]
[400502193,1767676231820,-278.0225,0.00017231,2]
[400502194,1767676231829,-300.0,0.00017329,2]
[400502195,1767676231839,-109.14602715,0.00017329,2]
[400502196,1767676231851,-1090.85397285,0.00017329,2]
[400502197,1767676231861,-500.0,0.0001733,2]
[400502198,1767676231870,-500.0,0.0001733,2]
[400502199,1767676231880,-500.0,0.0001733,2]
[400502200,1767676231891,-546.69023937,0.0001733,2]
[400502201,1767676231901,-500.0,0.0001733,2]
[400502202,1767676231920,-500.0,0.0001733,2]
[400502203,1767676231932,-500.0,0.0001733,2]
[400502204,1767676231942,-500.0,0.0001733,2]
[400502205,1767676231952,-500.0,0.0001733,2]
[400502206,1767676231961,-500.0,0.0001733,2]
[400502207,1767676231971,-500.0,0.0001733,2]
[400502208,1767676231981,-500.0,0.0001733,2]
[400502209,1767676231990,-500.0,0.0001733,2]
[400502210,1767676232000,-500.0,0.0001733,2]
[400502211,1767676232010,-500.0,0.0001733,2]
[400502212,1767676232020,-604.51860325,0.0001733,2]
[400502213,1767676232030,-500.0,0.0001733,2]
[400502214,1767676232039,-500.0,0.0001733,2]
[400502215,1767676232049,-361.20476566,0.00017491,2]
[400502216,1767676232058,-146.56781771,0.00017591,2]
[400502217,1767676232075,-3905.87218229,0.00017591,2]
[400502218,1767676232084,-168.0,0.00017659,2]
[400502219,1767676232095,-2797.93888503,0.00017772,2]
[400502220,1767676232105,-7586.20073784,0.00017872,2]
[400502221,1767676232119,-868.46461215,0.00017872,2]
[400502222,1767676232131,-1907.47582606,0.00017872,2]
[400502224,1767676232143,-2108.01942602,0.00017872,2]
[400502226,1767676232155,-485.76562377,0.00017872,2]
[400502228,1767676232166,-3145.62502986,0.00017872,2]
[400502231,1767676232181,-398.29499985,0.00017872,2]
[400502235,1767676237906,-1889.45118596,0.00017872,2]
[400502236,1767676237917,-4932.1520001,0.00017872,2]
[400502237,1767676237930,-2824.62425539,0.00017872,2]
[400502238,1767676237942,-898.72,0.00017872,2]
[400502239,1767676237954,-250.7765568,0.00017872,2]
[400502240,1767676237969,-3647.23601177,0.00017872,2]
[400502241,1767676238020,-506.31274187,0.00017872,2]
[400502242,1767676238032,-570.01455073,0.00017872,2]
[400502243,1767676238079,-1550.41594183,0.00017872,2]
[400502244,1767676238089,-1000.0,0.00017872,2]
[400502245,1767676238099,-150.0,0.00018,7]
[400502246,1767676238109,-1327.19,0.00018,2]
[400502247,1767676238119,-1295.021,0.0001851,2]
[400502248,1767676238128,-1266.0,0.0001851,2]
[400502249,1767676238138,-6549.0,0.0001851,2]
[400502250,1767676238149,-2435.0,0.0001851,2]
[400502251,1767676238159,-250.0,0.000187,2]
[400502252,1767676238169,-420.0,0.00018921,2]
[400502253,1767676238178,-1680.0,0.00019014,2]
[400502254,1767676238188,-168.0,0.00019018,2]
[400502256,1767676238198,-229.53168465,0.00019082,2]
[400502258,1767676238207,-2000.0,0.000197,2]
[400502260,1767676238217,-2797.93888501,0.00019743,2]
[400502262,1767676238227,-306.0,0.000198,2]
[400502265,1767676238237,-1000.0,0.00019819,2]
[400502266,1767676238246,-776.843,0.000199,2]
[400502269,1767676238256,-150.0,0.0002,2]
[400502271,1767676238266,-470.65,0.00020187,2]
[400502273,1767676238275,-200.0,0.00020386,2]
[400502275,1767676238285,-500.0,0.00020456,7]
[400502277,1767676238294,-500.0,0.00020456,7]
[400502279,1767676238303,-600.0,0.00020456,7]
[400502281,1767676238313,-1000.0,0.00020562,2]
[400502283,1767676238322,-194.75,0.00020589,2]
[400502285,1767676238331,-24458.35,0.00020604,2]
[400502287,1767676238340,-587.0,0.00020659,2]
[400502289,1767676238349,-2351.0,0.00020864,2]
[400502291,1767676238359,-9999.99,0.00020951,2]
[400502293,1767676238369,-150.99,0.00020951,2]
[400502295,1767676238378,-9999.99,0.00020951,2]
[400502297,1767676238387,-999.99,0.00020951,2]
[400502299,1767676238397,-150.0,0.00020973,2]
[400502301,1767676238406,-500.0,0.0002098,3]
[400502303,1767676238417,-12491.06,0.00021068,2]
[400502305,1767676238427,-500.0,0.00021096,2]
[400502307,1767676238437,-1000.0,0.00021118,2]
[400502309,1767676238447,-1000.0,0.00021305,2]
[400502311,1767676238457,-6366.1,0.0002137,2]
[400502313,1767676238466,-2500.0,0.0002141,2]
[400502315,1767676238475,-1193.553,0.0002151,2]
[400502317,1767676238484,-6549.0,0.0002151,2]
[400502319,1767676238494,-2435.0,0.0002151,2]
[400502321,1767676238503,-250.0,0.00021521,2]
[400502323,1767676238512,-3417.154221,0.00021526,2]
[400502325,1767676238522,-2343.9045616,0.00021526,2]
[400502328,1767676238531,-8523.713155,0.00021526,2]
[400502330,1767676238540,-446.045535,0.00021526,2]
[400502332,1767676238550,-600.0,0.00021552,7]
[400502334,1767676238560,-1644.36,0.00021607,2]
[400502336,1767676238569,-300.0,0.00021644,2]
[400502338,1767676238579,-2712.59408154,0.00021658,2]
[400502340,1767676238588,-153.92,0.00021666,2]
[400502342,1767676238597,-150.0,0.00021666,2]
[400502344,1767676238606,-300.0,0.00021679,2]
[400502346,1767676238616,-300.0,0.00021683,2]
[400502348,1767676238625,-300.0,0.00021696,2]
[400502350,1767676238635,-300.0,0.000217,2]
[400502352,1767676238644,-300.0,0.00021705,2]
[400502354,1767676238654,-300.0,0.00021706,2]
[400502356,1767676238674,-300.0,0.00021707,2]
[400502358,1767676238683,-300.0,0.00021708,2]
[400502360,1767676238693,-300.0,0.00021711,2]
[400502362,1767676238702,-300.0,0.00021713,2]
[400502364,1767676238716,-300.0,0.00021714,2]
[400502366,1767676238725,-300.0,0.00021714,2]
[400502368,1767676238735,-2797.93888501,0.00021714,2]
[400502370,1767676238745,-300.0,0.00021719,2]
[400502372,1767676238754,-300.0,0.0002172,2]
[400502374,1767676238764,-300.0,0.00021721,2]
[400502376,1767676238774,-300.0,0.00021723,2]
[400502378,1767676238784,-300.0,0.00021724,2]
[400502380,1767676238793,-300.0,0.00021725,2]
[400502382,1767676238802,-300.0,0.00021729,2]
[400502384,1767676238811,-300.0,0.00021732,2]
[400502385,1767676238822,-300.0,0.00021737,2]
[400502387,1767676238832,-300.0,0.0002174,2]
[400502390,1767676238842,-300.0,0.00021741,2]
[400502392,1767676238852,-300.0,0.00021746,2]
[400502394,1767676238861,-300.0,0.00021749,2]
[400502396,1767676238872,-300.0,0.0002175,2]
[400502398,1767676238882,-300.0,0.00021751,2]
[400502400,1767676238893,-300.0,0.00021752,2]
[400502402,1767676238902,-300.0,0.00021758,2]
[400502403,1767676238911,-300.0,0.00021767,2]
[400502405,1767676238921,-300.0,0.00021773,2]
[400502408,1767676238931,-300.0,0.00021775,2]
[400502410,1767676238941,-300.0,0.00021776,2]
[400502411,1767676238950,-300.0,0.00021778,2]
[400502413,1767676238960,-300.0,0.0002178,2]
[400502416,1767676238971,-300.0,0.00021781,2]
[400502418,1767676238980,-300.0,0.00021782,2]
[400502420,1767676238989,-300.0,0.00021786,2]
[400502422,1767676239000,-300.0,0.0002179,2]
[400502424,1767676239011,-300.0,0.00021791,2]
[400502426,1767676239020,-300.0,0.00021792,2]
[400502428,1767676239029,-300.0,0.00021794,2]
[400502430,1767676239038,-300.0,0.00021795,2]
[400502432,1767676239048,-300.0,0.00021797,2]
[400502433,1767676239057,-300.0,0.00021798,2]
[400502436,1767676239066,-300.0,0.000218,2]
[400502438,1767676239075,-300.0,0.00021803,2]
[400502440,1767676239086,-300.0,0.00021804,2]
[400502442,1767676239095,-150.0,0.00021807,2]
[400502444,1767676239104,-300.0,0.00021812,2]
[400502446,1767676239113,-300.0,0.00021817,2]
[400502448,1767676239122,-300.0,0.00021818,2]
[400502450,1767676239131,-300.0,0.00021823,2]
[400502452,1767676239140,-300.0,0.00021825,2]
[400502454,1767676239150,-300.0,0.00021826,2]
[400502456,1767676239160,-300.0,0.00021829,2]
[400502458,1767676239169,-300.0,0.0002183,2]
[400502460,1767676239179,-300.0,0.00021832,2]
[400502462,1767676239188,-150.0,0.00021835,2]
[400502464,1767676239197,-300.0,0.00021837,2]
[400502466,1767676239206,-300.0,0.00021838,2]
[400502468,1767676239215,-300.0,0.0002185,2]
[400502470,1767676239224,-300.0,0.0002185,2]
[400502472,1767676239233,-300.0,0.00021851,2]
[400502474,1767676239242,-300.0,0.00021854,2]
[400502476,1767676239251,-300.0,0.00021854,2]
[400502478,1767676239260,-300.0,0.00021856,2]
[400502480,1767676239269,-300.0,0.0002186,2]
[400502482,1767676239279,-300.0,0.00021861,2]
[400502484,1767676239288,-300.0,0.00021865,2]
[400502486,1767676239297,-300.0,0.00021866,2]
[400502488,1767676239306,-300.0,0.00021866,2]
[400502490,1767676239315,-300.0,0.00021868,2]
[400502492,1767676239324,-300.0,0.00021874,2]
[400502494,1767676239333,-300.0,0.00021875,2]
[400502496,1767676239343,-300.0,0.00021879,2]
[400502498,1767676239351,-150.52055,0.0002188,2]
[400502500,1767676239360,-150.52056,0.0002188,2]
[400502502,1767676239370,-150.52056,0.0002188,2]
[400502504,1767676239379,-300.0,0.00021883,2]
[400502506,1767676239387,-300.0,0.00021883,2]
[400502508,1767676239398,-300.0,0.00021883,2]
[400502510,1767676239407,-300.0,0.00021884,2]
[400502512,1767676239416,-300.0,0.00021886,2]
[400502514,1767676239425,-150.52056,0.0002189,2]
[400502516,1767676239436,-300.0,0.00021896,2]
[400502518,1767676239445,-300.0,0.00021897,2]
[400502520,1767676239454,-300.0,0.00021898,2]
[400502522,1767676239463,-150.52056,0.0002191,2]
[400502524,1767676239473,-300.0,0.00021914,2]
[400502526,1767676239483,-300.0,0.00021915,2]
[400502528,1767676239493,-300.0,0.00021917,2]
[400502530,1767676239503,-800.0,0.00021918,2]
[400502532,1767676239512,-800.0,0.00021918,2]
[400502534,1767676239521,-800.0,0.00021918,2]
[400502536,1767676239530,-800.0,0.00021918,2]
[400502538,1767676239539,-800.0,0.00021918,2]
[400502540,1767676239547,-800.0,0.00021918,2]
[400502542,1767676239556,-800.0,0.00021918,2]
[400502544,1767676239565,-800.0,0.00021918,2]
[400502545,1767676239576,-1000.0,0.00021918,2]
[400502548,1767676239586,-150.0,0.00021918,7]
[400502550,1767676239597,-150.0,0.00021918,2]
[400502552,1767676239607,-300.0,0.0002192,2]
[400502554,1767676239617,-326.16534788,0.00021926,2]
[400502556,1767676239628,-300.0,0.00021935,2]
[400502557,1767676239637,-300.0,0.00021935,2]
[400502560,1767676239647,-300.0,0.00021938,2]
[400502562,1767676239656,-150.52056,0.0002194,2]
[400502564,1767676239665,-300.0,0.00021944,2]
[400502566,1767676239674,-300.0,0.00021945,2]
[400502568,1767676239684,-300.0,0.00021947,2]
[400502570,1767676239693,-300.0,0.00021949,2]
[400502572,1767676239703,-300.0,0.0002195,2]
[400502574,1767676239716,-300.0,0.0002195,2]
[400502575,1767676239725,-300.0,0.00021958,2]
[400502578,1767676239735,-300.0,0.00021959,2]
[400502579,1767676239744,-175.84813518,0.00021973,7]
[400502582,1767676239754,-2000.63528841,0.00022,2]